[Event "*** Titled Tuesday Blitz"]
[Site "Chess.com"]
[Date "2021.03.09"]
[Round "1"]
[White "alexrustemov"]
[Black "korkmaz16"]
[Result "1/2-1/2"]
[WhiteElo "2760"]
[BlackElo "2419"]
[TimeControl "180+1"]
[EndTime "10:08:36 PST"]
[Termination "Game drawn by repetition"]

1. d4 {[%clk 0:03:00.9]} 1... Nf6 {[%clk 0:02:59.4]} 2. c4 {[%clk 0:03:00.6]}
2... g6 {[%clk 0:02:58.4]} 3. g3 {[%clk 0:03:01.2]} 3... Bg7 {[%clk 0:02:57.6]}
4. Bg2 {[%clk 0:03:01.8]} 4... O-O {[%clk 0:02:57.2]} 5. Nc3 {[%clk 0:03:02.3]}
5... d6 {[%clk 0:02:55.5]} 6. Nf3 {[%clk 0:03:02.6]} 6... Nc6 {[%clk 0:02:51.9]}
7. O-O {[%clk 0:03:02.4]} 7... a6 {[%clk 0:02:51.1]} 8. h3 {[%clk 0:03:01.5]}
8... Rb8 {[%clk 0:02:47.3]} 9. e4 {[%clk 0:03:01.4]} 9... Nd7 {[%clk 0:02:30.9]}
10. Be3 {[%clk 0:02:54.4]} 10... b5 {[%clk 0:02:24]} 11. cxb5 {[%clk 0:02:48.8]}
11... axb5 {[%clk 0:02:21.7]} 12. Rc1 {[%clk 0:02:40.7]} 12... Na5 {[%clk
0:02:09.2]} 13. b3 {[%clk 0:02:39.4]} 13... Ba6 {[%clk 0:01:52.5]} 14. Nd5
{[%clk 0:02:25.4]} 14... b4 {[%clk 0:01:46.7]} 15. Re1 {[%clk 0:02:19.3]} 15...
c6 {[%clk 0:01:45]} 16. Nf4 {[%clk 0:02:17.7]} 16... Nf6 {[%clk 0:01:33.8]} 17.
e5 {[%clk 0:02:15.9]} 17... Ne4 {[%clk 0:01:29.2]} 18. Qc2 {[%clk 0:02:08.8]}
18... d5 {[%clk 0:01:22.2]} 19. Nd2 {[%clk 0:01:54.4]} 19... Nc3 {[%clk
0:00:59]} 20. a3 {[%clk 0:01:53.7]} 20... g5 {[%clk 0:00:50.4]} 21. Nh5 {[%clk
0:01:53.1]} 21... Ne2+ {[%clk 0:00:49.7]} 22. Rxe2 {[%clk 0:01:49.3]} 22... Bxe2
{[%clk 0:00:50.6]} 23. Nxg7 {[%clk 0:01:49.4]} 23... Kxg7 {[%clk 0:00:48.9]} 24.
axb4 {[%clk 0:01:48.6]} 24... Rxb4 {[%clk 0:00:47.5]} 25. Qc3 {[%clk 0:01:34.8]}
25... Qb6 {[%clk 0:00:45.6]} 26. Bxg5 {[%clk 0:01:26.4]} 26... Qxd4 {[%clk
0:00:42]} 27. Bxe7 {[%clk 0:01:22.5]} 27... Qxc3 {[%clk 0:00:35.3]} 28. Rxc3
{[%clk 0:01:23.4]} 28... d4 {[%clk 0:00:33.1]} 29. Rc2 {[%clk 0:01:09.2]} 29...
Rfb8 {[%clk 0:00:22.1]} 30. Bxb4 {[%clk 0:01:07.2]} 30... Rxb4 {[%clk 0:00:23]}
31. f4 {[%clk 0:00:56.1]} 31... Bd1 {[%clk 0:00:20.1]} 32. Rc1 {[%clk
0:00:51.2]} 32... Bxb3 {[%clk 0:00:20.2]} 33. Bxc6 {[%clk 0:00:51]} 33... Be6
{[%clk 0:00:20.7]} 34. Bg2 {[%clk 0:00:47.1]} 34... Nb3 {[%clk 0:00:18.4]} 35.
Rd1 {[%clk 0:00:43.4]} 35... Nc5 {[%clk 0:00:16.9]} 36. g4 {[%clk 0:00:37.4]}
36... d3 {[%clk 0:00:17.1]} 37. Kf2 {[%clk 0:00:36.1]} 37... Rxf4+ {[%clk
0:00:16.4]} 38. Ke3 {[%clk 0:00:35.4]} 38... Rb4 {[%clk 0:00:17.3]} 39. Ne4
{[%clk 0:00:34.1]} 39... Nxe4 {[%clk 0:00:13]} 40. Bxe4 {[%clk 0:00:35]} 40...
Rb5 {[%clk 0:00:12.1]} 41. Kf4 {[%clk 0:00:32.8]} 41... Bb3 {[%clk 0:00:08.1]}
42. Rxd3 {[%clk 0:00:32.4]} 42... Bc2 {[%clk 0:00:08.4]} 43. Re3 {[%clk
0:00:24.6]} 43... Bxe4 {[%clk 0:00:08.6]} 44. Rxe4 {[%clk 0:00:25.1]} 44... Rb1
{[%clk 0:00:09.5]} 45. h4 {[%clk 0:00:25]} 45... Rf1+ {[%clk 0:00:09.5]} 46. Kg5
{[%clk 0:00:24.9]} 46... h6+ {[%clk 0:00:09.2]} 47. Kh5 {[%clk 0:00:24.9]} 47...
Ra1 {[%clk 0:00:09.1]} 48. g5 {[%clk 0:00:23.7]} 48... hxg5 {[%clk 0:00:08.9]}
49. Kxg5 {[%clk 0:00:24.3]} 49... Rg1+ {[%clk 0:00:09.2]} 50. Rg4 {[%clk
0:00:24.3]} 50... Re1 {[%clk 0:00:08.3]} 51. Kf5+ {[%clk 0:00:20.7]} 51... Kf8
{[%clk 0:00:08]} 52. h5 {[%clk 0:00:18.5]} 52... Rh1 {[%clk 0:00:07.7]} 53. Kg5
{[%clk 0:00:18.4]} 53... Kg7 {[%clk 0:00:05.8]} 54. Rh4 {[%clk 0:00:17.6]} 54...
Rg1+ {[%clk 0:00:05.8]} 55. Kf5 {[%clk 0:00:17.1]} 55... Kh6 {[%clk 0:00:05.7]}
56. Kf6 {[%clk 0:00:15.1]} 56... Rf1+ {[%clk 0:00:05.8]} 57. Ke7 {[%clk
0:00:15]} 57... Re1 {[%clk 0:00:06.1]} 58. Kd6 {[%clk 0:00:12.6]} 58... Rd1+
{[%clk 0:00:06.2]} 59. Kc5 {[%clk 0:00:11.9]} 59... Re1 {[%clk 0:00:06.2]} 60.
Kd5 {[%clk 0:00:12.1]} 60... Rd1+ {[%clk 0:00:05.7]} 61. Ke4 {[%clk 0:00:12.2]}
61... Re1+ {[%clk 0:00:05.8]} 62. Kf5 {[%clk 0:00:12.4]} 62... Rf1+ {[%clk
0:00:06.2]} 63. Ke4 {[%clk 0:00:09.4]} 63... Re1+ {[%clk 0:00:06.4]} 64. Kf4
{[%clk 0:00:09.2]} 64... Rf1+ {[%clk 0:00:06.5]} 65. Kg3 {[%clk 0:00:09.4]}
65... Re1 {[%clk 0:00:06.4]} 66. Kf4 {[%clk 0:00:09]} 66... Rf1+ {[%clk
0:00:06.3]} 67. Ke4 {[%clk 0:00:09.7]} 67... Re1+ {[%clk 0:00:06.5]} 1/2-1/2

[Event "*** Titled Tuesday Blitz"]
[Site "Chess.com"]
[Date "2021.03.09"]
[Round "1"]
[White "Grandmaster2B"]
[Black "DarZay"]
[Result "1-0"]
[WhiteElo "2522"]
[BlackElo "2180"]
[TimeControl "180+1"]
[EndTime "10:08:37 PST"]
[Termination "Grandmaster2B won on time"]

1. e4 {[%clk 0:03:00.9]} 1... c5 {[%clk 0:02:59.4]} 2. Nf3 {[%clk 0:03:00.8]}
2... Nc6 {[%clk 0:02:59.1]} 3. d4 {[%clk 0:03:01.4]} 3... cxd4 {[%clk
0:02:58.4]} 4. Nxd4 {[%clk 0:03:02.3]} 4... Nf6 {[%clk 0:02:56.6]} 5. Nc3 {[%clk
0:03:02.5]} 5... d6 {[%clk 0:02:56.6]} 6. Bg5 {[%clk 0:03:01.8]} 6... e5 {[%clk
0:02:56.7]} 7. Ndb5 {[%clk 0:03:00.7]} 7... a6 {[%clk 0:02:48.9]} 8. Na3 {[%clk
0:03:00.7]} 8... b5 {[%clk 0:02:46.4]} 9. Nd5 {[%clk 0:03:00.9]} 9... Be7 {[%clk
0:02:45.9]} 10. Bxf6 {[%clk 0:03:01.5]} 10... Bxf6 {[%clk 0:02:45]} 11. c3
{[%clk 0:03:02]} 11... O-O {[%clk 0:02:36.4]} 12. Nc2 {[%clk 0:03:02]} 12... Bg5
{[%clk 0:02:36.2]} 13. a4 {[%clk 0:03:01.5]} 13... Rb8 {[%clk 0:02:28]} 14. axb5
{[%clk 0:02:56.8]} 14... axb5 {[%clk 0:02:27.1]} 15. Bd3 {[%clk 0:02:55.9]}
15... Be6 {[%clk 0:02:19.6]} 16. Nce3 {[%clk 0:02:52.1]} 16... b4 {[%clk
0:02:15]} 17. O-O {[%clk 0:02:50.3]} 17... bxc3 {[%clk 0:02:08.9]} 18. bxc3
{[%clk 0:02:51.2]} 18... Ne7 {[%clk 0:02:07.8]} 19. Ra6 {[%clk 0:02:41.7]} 19...
Bc8 {[%clk 0:02:00.7]} 20. Ra7 {[%clk 0:02:36.4]} 20... Bb7 {[%clk 0:01:55]} 21.
Qa4 {[%clk 0:02:28]} 21... Nxd5 {[%clk 0:01:39.8]} 22. Nxd5 {[%clk 0:02:25.1]}
22... Bxd5 {[%clk 0:01:39.7]} 23. exd5 {[%clk 0:02:26]} 23... Qb6 {[%clk
0:01:35.7]} 24. Ra6 {[%clk 0:02:20.1]} 24... Qc5 {[%clk 0:01:34.6]} 25. Qc4
{[%clk 0:01:53.8]} 25... Qxc4 {[%clk 0:01:32.7]} 26. Bxc4 {[%clk 0:01:54.7]}
26... Rfc8 {[%clk 0:01:31.5]} 27. Rc6 {[%clk 0:01:53.6]} 27... Bd2 {[%clk
0:01:26.9]} 28. Ba6 {[%clk 0:01:50.2]} 28... Rd8 {[%clk 0:01:19.7]} 29. g3
{[%clk 0:01:40.8]} 29... g6 {[%clk 0:01:18.1]} 30. Kg2 {[%clk 0:01:39.3]} 30...
Rb3 {[%clk 0:01:16.3]} 31. c4 {[%clk 0:01:36.6]} 31... Bb4 {[%clk 0:01:14.3]}
32. Bb5 {[%clk 0:01:35.6]} 32... Bc5 {[%clk 0:01:12.1]} 33. Kh3 {[%clk 0:01:26]}
33... f5 {[%clk 0:01:09]} 34. Rc7 {[%clk 0:00:59.8]} 34... Ra8 {[%clk
0:01:03.9]} 35. Bd7 {[%clk 0:00:53.9]} 35... Ra7 {[%clk 0:00:49.7]} 36. Be6+
{[%clk 0:00:50]} 36... Kh8 {[%clk 0:00:45.7]} 37. Rc8+ {[%clk 0:00:49.5]} 37...
Kg7 {[%clk 0:00:45.8]} 38. Rg8+ {[%clk 0:00:37]} 38... Kh6 {[%clk 0:00:45.7]}
39. Rc8 {[%clk 0:00:35.5]} 39... Bd4 {[%clk 0:00:39.3]} 40. Rc6 {[%clk
0:00:34.5]} 40... Bc5 {[%clk 0:00:39.2]} 41. Rd1 {[%clk 0:00:34.3]} 41... Rb2
{[%clk 0:00:31.2]} 42. Rxc5 {[%clk 0:00:25]} 42... dxc5 {[%clk 0:00:31.3]} 43.
d6 {[%clk 0:00:25.9]} 43... Ra8 {[%clk 0:00:30]} 44. d7 {[%clk 0:00:25.5]} 44...
Rd8 {[%clk 0:00:30]} 45. f3 {[%clk 0:00:25.5]} 45... Rf2 {[%clk 0:00:24.7]} 46.
Rd5 {[%clk 0:00:21.3]} 46... Rxf3 {[%clk 0:00:19.3]} 47. Rxc5 {[%clk 0:00:21.4]}
47... e4 {[%clk 0:00:19.2]} 48. Rc8 {[%clk 0:00:20.6]} 48... Rxd7 {[%clk
0:00:18.1]} 49. Bxd7 {[%clk 0:00:21.5]} 49... e3 {[%clk 0:00:18.3]} 50. Re8
{[%clk 0:00:21.4]} 50... g5 {[%clk 0:00:16.7]} 51. Kg2 {[%clk 0:00:19.4]} 51...
Rf2+ {[%clk 0:00:16.4]} 52. Kg1 {[%clk 0:00:20.1]} 52... Rc2 {[%clk 0:00:15.9]}
53. Rxe3 {[%clk 0:00:19.8]} 53... Rxc4 {[%clk 0:00:15.6]} 54. Bxf5 {[%clk
0:00:20.3]} 54... Rc1+ {[%clk 0:00:14.8]} 55. Kg2 {[%clk 0:00:20.5]} 55... Ra1
{[%clk 0:00:14.2]} 56. g4 {[%clk 0:00:20.7]} 56... Ra2+ {[%clk 0:00:13.9]} 57.
Kg1 {[%clk 0:00:20.4]} 57... Ra1+ {[%clk 0:00:12.4]} 58. Kf2 {[%clk 0:00:20.8]}
58... Ra2+ {[%clk 0:00:12.5]} 59. Re2 {[%clk 0:00:21.7]} 59... Ra1 {[%clk
0:00:09.6]} 60. Re6+ {[%clk 0:00:21.8]} 60... Kg7 {[%clk 0:00:08.9]} 61. Re7+
{[%clk 0:00:22.3]} 61... Kf6 {[%clk 0:00:08.8]} 62. Rxh7 {[%clk 0:00:22.3]}
62... Ke5 {[%clk 0:00:08.7]} 63. Re7+ {[%clk 0:00:21.3]} 63... Kf6 {[%clk
0:00:07.6]} 64. Re6+ {[%clk 0:00:21.5]} 64... Kg7 {[%clk 0:00:07.7]} 65. Rg6+
{[%clk 0:00:21.8]} 65... Kh8 {[%clk 0:00:06]} 66. Rxg5 {[%clk 0:00:22.4]} 66...
Ra2+ {[%clk 0:00:03.4]} 67. Kg3 {[%clk 0:00:22.7]} 67... Rg2+ {[%clk 0:00:00.2]}
68. Kf4 {[%clk 0:00:19]} 1-0

[Event "*** Titled Tuesday Blitz"]
[Site "Chess.com"]
[Date "2021.03.09"]
[Round "1"]
[White "HackingKid98"]
[Black "Murad_Ibrahimli"]
[Result "0-1"]
[WhiteElo "2452"]
[BlackElo "2874"]
[TimeControl "180+1"]
[EndTime "10:08:40 PST"]
[Termination "Murad_Ibrahimli won on time"]

1. d4 {[%clk 0:02:58]} 1... Nf6 {[%clk 0:02:58.4]} 2. c4 {[%clk 0:02:57.6]} 2...
e6 {[%clk 0:02:56.3]} 3. g3 {[%clk 0:02:57.7]} 3... c5 {[%clk 0:02:54.8]} 4. Nf3
{[%clk 0:02:56.9]} 4... cxd4 {[%clk 0:02:49.7]} 5. Nxd4 {[%clk 0:02:57.8]} 5...
Nc6 {[%clk 0:02:49.7]} 6. Bg2 {[%clk 0:02:57.6]} 6... Bc5 {[%clk 0:02:46.2]} 7.
Nb3 {[%clk 0:02:55.6]} 7... Be7 {[%clk 0:02:44.4]} 8. O-O {[%clk 0:02:54.6]}
8... d5 {[%clk 0:02:39.3]} 9. cxd5 {[%clk 0:02:53.1]} 9... Nxd5 {[%clk
0:02:38.3]} 10. Bd2 {[%clk 0:02:52.9]} 10... O-O {[%clk 0:02:37.2]} 11. Nc3
{[%clk 0:02:53]} 11... Bf6 {[%clk 0:02:10.9]} 12. Rc1 {[%clk 0:02:48.7]} 12...
a5 {[%clk 0:02:03.3]} 13. Nc5 {[%clk 0:02:44.2]} 13... h6 {[%clk 0:01:10.4]} 14.
Qa4 {[%clk 0:02:38.8]} 14... Nb6 {[%clk 0:01:08.7]} 15. Qd1 {[%clk 0:02:19.1]}
15... Nc4 {[%clk 0:01:07.3]} 16. Be3 {[%clk 0:01:44.8]} 16... Nxe3 {[%clk
0:01:04.6]} 17. fxe3 {[%clk 0:01:45.7]} 17... Bg5 {[%clk 0:01:03.1]} 18. Kf2
{[%clk 0:01:00.4]} 18... Bxe3+ {[%clk 0:00:50.3]} 19. Kxe3 {[%clk 0:00:56.6]}
19... Qg5+ {[%clk 0:00:50.8]} 20. Kf2 {[%clk 0:00:49.3]} 20... Qxc5+ {[%clk
0:00:50.3]} 21. Ke1 {[%clk 0:00:48]} 21... Rd8 {[%clk 0:00:49.6]} 22. Qa4 {[%clk
0:00:44.7]} 22... Qe3 {[%clk 0:00:42.9]} 23. Rd1 {[%clk 0:00:41.3]} 23... Rxd1+
{[%clk 0:00:42]} 24. Nxd1 {[%clk 0:00:42.2]} 24... Qc5 {[%clk 0:00:38.6]} 25.
Qf4 {[%clk 0:00:40.6]} 25... Qb4+ {[%clk 0:00:39]} 26. Nc3 {[%clk 0:00:34.2]}
26... f5 {[%clk 0:00:28.3]} 27. Qd2 {[%clk 0:00:30.6]} 27... Ne5 {[%clk
0:00:20.4]} 28. Rf4 {[%clk 0:00:25.7]} 28... Qb6 {[%clk 0:00:19.8]} 29. b3
{[%clk 0:00:19]} 29... Qg1+ {[%clk 0:00:19.2]} 30. Bf1 {[%clk 0:00:19.4]} 30...
Qxh2 {[%clk 0:00:19.5]} 31. Qe3 {[%clk 0:00:17.9]} 31... Ng4 {[%clk 0:00:19]}
32. Qf3 {[%clk 0:00:17.2]} 32... Kh7 {[%clk 0:00:19.1]} 33. Rc4 {[%clk
0:00:15.8]} 33... a4 {[%clk 0:00:18.9]} 34. Rxa4 {[%clk 0:00:14]} 34... Ne5
{[%clk 0:00:19.3]} 35. Qf4 {[%clk 0:00:12.5]} 35... Rxa4 {[%clk 0:00:19.7]} 36.
Nxa4 {[%clk 0:00:12.6]} 36... Ng4 {[%clk 0:00:20.1]} 37. Nc5 {[%clk 0:00:11.1]}
37... e5 {[%clk 0:00:20.3]} 38. Qf3 {[%clk 0:00:09.7]} 38... b6 {[%clk
0:00:20.5]} 39. Na4 {[%clk 0:00:07.7]} 39... e4 {[%clk 0:00:19.8]} 40. Qf4
{[%clk 0:00:07.1]} 40... e3 {[%clk 0:00:19.9]} 41. Nxb6 {[%clk 0:00:04.7]} 41...
Be6 {[%clk 0:00:20.3]} 42. Nc4 {[%clk 0:00:03.8]} 42... Qg1 {[%clk 0:00:11.5]}
43. a4 {[%clk 0:00:03.8]} 43... g5 {[%clk 0:00:08.2]} 44. Qc7+ {[%clk
0:00:02.1]} 44... Kg6 {[%clk 0:00:08.5]} 45. a5 {[%clk 0:00:02.3]} 45... Qf2+
{[%clk 0:00:07.9]} 46. Kd1 {[%clk 0:00:03.2]} 46... Qxf1+ {[%clk 0:00:08.5]} 47.
Kc2 {[%clk 0:00:04.1]} 47... Qxe2+ {[%clk 0:00:09]} 48. Kc3 {[%clk 0:00:04.6]}
48... Bxc4 {[%clk 0:00:08.5]} 49. bxc4 {[%clk 0:00:04.2]} 49... Qd2+ {[%clk
0:00:08.5]} 50. Kb3 {[%clk 0:00:04.1]} 50... Qd3+ {[%clk 0:00:08.8]} 51. Kb4
{[%clk 0:00:03.5]} 51... Qd2+ {[%clk 0:00:08.3]} 52. Kb5 {[%clk 0:00:03.4]}
52... e2 {[%clk 0:00:07.5]} 53. Qd6+ {[%clk 0:00:02.1]} 53... Nf6 {[%clk
0:00:07.9]} 54. Qxd2 {[%clk 0:00:02]} 54... Ne4 {[%clk 0:00:08]} 55. Qe1 {[%clk
0:00:02.9]} 55... f4 {[%clk 0:00:07.4]} 56. a6 {[%clk 0:00:02.8]} 56... f3
{[%clk 0:00:07.7]} 57. a7 {[%clk 0:00:03.7]} 57... f2 {[%clk 0:00:08.2]} 58. Qb1
{[%clk 0:00:03.8]} 58... e1=Q {[%clk 0:00:07.6]} 59. Qxe1 {[%clk 0:00:03.5]}
59... fxe1=Q {[%clk 0:00:07.2]} 60. a8=Q {[%clk 0:00:03.9]} 60... Qb1+ {[%clk
0:00:06.4]} 61. Kc6 {[%clk 0:00:01.2]} 61... Nf6 {[%clk 0:00:06.8]} 0-1

[Event "*** Titled Tuesday Blitz"]
[Site "Chess.com"]
[Date "2021.03.09"]
[Round "1"]
[White "Vamostodorecto"]
[Black "Lestofante90"]
[Result "0-1"]
[WhiteElo "2402"]
[BlackElo "2747"]
[TimeControl "180+1"]
[EndTime "10:08:41 PST"]
[Termination "Lestofante90 won on time"]

1. d4 {[%clk 0:03:00.9]} 1... Nf6 {[%clk 0:02:53.8]} 2. c4 {[%clk 0:02:58.6]}
2... e6 {[%clk 0:02:30]} 3. Nc3 {[%clk 0:02:57.9]} 3... Bb4 {[%clk 0:02:29]} 4.
e3 {[%clk 0:02:57.2]} 4... O-O {[%clk 0:02:28.8]} 5. Bd2 {[%clk 0:02:57]} 5...
c5 {[%clk 0:02:26.9]} 6. Nf3 {[%clk 0:02:57.2]} 6... cxd4 {[%clk 0:02:25.2]} 7.
exd4 {[%clk 0:02:56.5]} 7... d5 {[%clk 0:02:25]} 8. Bd3 {[%clk 0:02:42.3]} 8...
dxc4 {[%clk 0:02:22.7]} 9. Bxc4 {[%clk 0:02:43.2]} 9... Nc6 {[%clk 0:02:22.3]}
10. Bg5 {[%clk 0:02:36.9]} 10... h6 {[%clk 0:02:18.5]} 11. Bh4 {[%clk
0:02:36.7]} 11... Be7 {[%clk 0:02:18.2]} 12. O-O {[%clk 0:02:32.4]} 12... Nh5
{[%clk 0:02:17.9]} 13. Bxe7 {[%clk 0:02:30.9]} 13... Nxe7 {[%clk 0:02:16.8]} 14.
d5 {[%clk 0:02:31]} 14... exd5 {[%clk 0:02:12.8]} 15. Nxd5 {[%clk 0:02:31.9]}
15... Nxd5 {[%clk 0:02:12.5]} 16. Qxd5 {[%clk 0:02:29.9]} 16... Be6 {[%clk
0:01:31.4]} 17. Qxd8 {[%clk 0:02:21.6]} 17... Raxd8 {[%clk 0:01:31.1]} 18. Bxe6
{[%clk 0:02:22.2]} 18... fxe6 {[%clk 0:01:32]} 19. Rac1 {[%clk 0:02:09.1]} 19...
Rd7 {[%clk 0:01:01.3]} 20. Ne5 {[%clk 0:02:05.2]} 20... Rd2 {[%clk 0:00:58.6]}
21. Nc4 {[%clk 0:02:00.3]} 21... Rd5 {[%clk 0:00:46.7]} 22. g3 {[%clk
0:01:57.6]} 22... Nf6 {[%clk 0:00:44.6]} 23. Rfe1 {[%clk 0:01:52.7]} 23... Ng4
{[%clk 0:00:39.5]} 24. Rc2 {[%clk 0:01:27.6]} 24... b5 {[%clk 0:00:33.4]} 25.
Ne3 {[%clk 0:01:25.4]} 25... Re5 {[%clk 0:00:32.6]} 26. Rce2 {[%clk 0:01:16.9]}
26... Nf6 {[%clk 0:00:32]} 27. f4 {[%clk 0:01:10.1]} 27... Rc5 {[%clk
0:00:30.5]} 28. Rd1 {[%clk 0:01:06.6]} 28... Rfc8 {[%clk 0:00:26.1]} 29. Rd6
{[%clk 0:01:03.1]} 29... R5c6 {[%clk 0:00:22.5]} 30. Rxc6 {[%clk 0:00:56.3]}
30... Rxc6 {[%clk 0:00:23.4]} 31. Nc2 {[%clk 0:00:49.8]} 31... Kf7 {[%clk
0:00:22.4]} 32. Nd4 {[%clk 0:00:49.2]} 32... Rb6 {[%clk 0:00:22.1]} 33. Rc2
{[%clk 0:00:41.1]} 33... Nd5 {[%clk 0:00:22.3]} 34. Nc6 {[%clk 0:00:36.7]} 34...
b4 {[%clk 0:00:14.8]} 35. Ne5+ {[%clk 0:00:35.6]} 35... Ke7 {[%clk 0:00:14.7]}
36. Rc8 {[%clk 0:00:33.4]} 36... Ra6 {[%clk 0:00:13.6]} 37. a3 {[%clk
0:00:13.4]} 37... bxa3 {[%clk 0:00:13.5]} 38. bxa3 {[%clk 0:00:14.3]} 38... Rxa3
{[%clk 0:00:14.2]} 39. Rg8 {[%clk 0:00:12.9]} 39... g5 {[%clk 0:00:14.4]} 40.
Rg7+ {[%clk 0:00:10.4]} 40... Ke8 {[%clk 0:00:12.2]} 41. fxg5 {[%clk 0:00:06.4]}
41... hxg5 {[%clk 0:00:13.1]} 42. Kg2 {[%clk 0:00:05.5]} 42... a5 {[%clk
0:00:07.9]} 43. h4 {[%clk 0:00:04.6]} 43... gxh4 {[%clk 0:00:07.4]} 44. gxh4
{[%clk 0:00:05.5]} 44... a4 {[%clk 0:00:08]} 45. h5 {[%clk 0:00:05.3]} 45...
Nf4+ {[%clk 0:00:08.2]} 46. Kf2 {[%clk 0:00:01.6]} 46... Nxh5 {[%clk 0:00:06.7]}
47. Ra7 {[%clk 0:00:02.5]} 47... Nf6 {[%clk 0:00:04.3]} 48. Nc6 {[%clk
0:00:02.4]} 48... Ne4+ {[%clk 0:00:04]} 49. Ke2 {[%clk 0:00:01.9]} 49... Ra2+
{[%clk 0:00:04.1]} 50. Kd3 {[%clk 0:00:02.1]} 50... Nc5+ {[%clk 0:00:04]} 51.
Kc4 {[%clk 0:00:01.8]} 51... Rc2+ {[%clk 0:00:04.6]} 52. Kb5 {[%clk 0:00:02.7]}
52... Nd7 {[%clk 0:00:05.1]} 53. Ra8+ {[%clk 0:00:02.4]} 53... Kf7 {[%clk
0:00:05.1]} 54. Ra7 {[%clk 0:00:03.3]} 54... Rc5+ {[%clk 0:00:04.1]} 55. Kxa4
{[%clk 0:00:03.6]} 55... Rxc6 {[%clk 0:00:05]} 56. Rxd7+ {[%clk 0:00:03]} 56...
Kf6 {[%clk 0:00:05.6]} 57. Rd2 {[%clk 0:00:03.6]} 57... e5 {[%clk 0:00:05.3]}
58. Kb5 {[%clk 0:00:04.1]} 58... Rc8 {[%clk 0:00:04.8]} 59. Rf2+ {[%clk
0:00:02.4]} 59... Kg5 {[%clk 0:00:04.7]} 60. Kb6 {[%clk 0:00:01.3]} 60... e4
{[%clk 0:00:04.8]} 61. Kb7 {[%clk 0:00:02.1]} 61... Rc1 {[%clk 0:00:05.1]} 0-1

[Event "*** Titled Tuesday Blitz"]
[Site "Chess.com"]
[Date "2021.03.09"]
[Round "1"]
[White "jd001"]
[Black "ural58"]
[Result "1/2-1/2"]
[WhiteElo "2247"]
[BlackElo "2544"]
[TimeControl "180+1"]
[EndTime "10:08:47 PST"]
[Termination "Game drawn - insufficient material"]

1. d4 {[%clk 0:03:00.9]} 1... d5 {[%clk 0:01:40.3]} 2. c4 {[%clk 0:03:00.4]}
2... e5 {[%clk 0:01:40]} 3. dxe5 {[%clk 0:02:59.5]} 3... d4 {[%clk 0:01:40]} 4.
Nf3 {[%clk 0:02:59.7]} 4... Nc6 {[%clk 0:01:39.8]} 5. g3 {[%clk 0:02:59.8]} 5...
Nge7 {[%clk 0:01:39.5]} 6. Bg2 {[%clk 0:02:57.4]} 6... Ng6 {[%clk 0:01:40.1]} 7.
O-O {[%clk 0:02:57.2]} 7... Ngxe5 {[%clk 0:01:40.1]} 8. b3 {[%clk 0:02:50.3]}
8... Nxf3+ {[%clk 0:01:38.3]} 9. Bxf3 {[%clk 0:02:49.6]} 9... Be7 {[%clk
0:01:38.9]} 10. Bb2 {[%clk 0:02:47.9]} 10... Bh3 {[%clk 0:01:36.1]} 11. Re1
{[%clk 0:02:46.9]} 11... Bf6 {[%clk 0:01:36.1]} 12. Nd2 {[%clk 0:02:45.6]} 12...
O-O {[%clk 0:01:35]} 13. Ne4 {[%clk 0:02:43.5]} 13... Be7 {[%clk 0:01:31.1]} 14.
Bg2 {[%clk 0:02:29.2]} 14... Bxg2 {[%clk 0:01:30.2]} 15. Kxg2 {[%clk 0:02:28.5]}
15... Bb4 {[%clk 0:01:30]} 16. Rf1 {[%clk 0:02:26.8]} 16... Re8 {[%clk
0:01:30.1]} 17. f3 {[%clk 0:02:23.6]} 17... f5 {[%clk 0:01:27.3]} 18. Nf2 {[%clk
0:02:19.2]} 18... Qe7 {[%clk 0:01:24]} 19. Bxd4 {[%clk 0:02:03.1]} 19... Rad8
{[%clk 0:01:18.5]} 20. e3 {[%clk 0:02:02.3]} 20... Bc3 {[%clk 0:01:16.2]} 21.
Rc1 {[%clk 0:01:59.9]} 21... Bxd4 {[%clk 0:01:14.1]} 22. exd4 {[%clk 0:01:58.2]}
22... Nxd4 {[%clk 0:01:13.9]} 23. Qe1 {[%clk 0:01:42.1]} 23... Ne2 {[%clk
0:01:03.5]} 24. Rd1 {[%clk 0:01:38.1]} 24... Qe3 {[%clk 0:00:31.8]} 25. Nh3
{[%clk 0:01:02.5]} 25... Rxd1 {[%clk 0:00:28.5]} 26. Qxd1 {[%clk 0:01:01.6]}
26... Nc3 {[%clk 0:00:28.6]} 27. Qa1 {[%clk 0:00:51.3]} 27... Qd2+ {[%clk
0:00:24]} 28. Rf2 {[%clk 0:00:50.7]} 28... Re2 {[%clk 0:00:24.6]} 29. a4 {[%clk
0:00:47.3]} 29... a5 {[%clk 0:00:24]} 30. Qf1 {[%clk 0:00:45]} 30... Rxf2+
{[%clk 0:00:21.1]} 31. Qxf2 {[%clk 0:00:45.2]} 31... Qxf2+ {[%clk 0:00:21.3]}
32. Kxf2 {[%clk 0:00:41.5]} 32... Kf7 {[%clk 0:00:20.6]} 33. Nf4 {[%clk
0:00:38.2]} 33... g5 {[%clk 0:00:20.2]} 34. Nd3 {[%clk 0:00:35.6]} 34... Kf6
{[%clk 0:00:17.7]} 35. Ke3 {[%clk 0:00:35.7]} 35... b6 {[%clk 0:00:14.6]} 36. c5
{[%clk 0:00:34.1]} 36... Ke6 {[%clk 0:00:13.3]} 37. cxb6 {[%clk 0:00:33.8]}
37... cxb6 {[%clk 0:00:13.7]} 38. Nb2 {[%clk 0:00:31.7]} 38... Kd5 {[%clk
0:00:13.1]} 39. Nc4 {[%clk 0:00:31.8]} 39... Kc5 {[%clk 0:00:13.5]} 40. g4
{[%clk 0:00:29.4]} 40... Nd5+ {[%clk 0:00:12.8]} 41. Kd2 {[%clk 0:00:25.7]}
41... fxg4 {[%clk 0:00:13.1]} 42. fxg4 {[%clk 0:00:25.6]} 42... Kb4 {[%clk
0:00:13.6]} 43. Kc2 {[%clk 0:00:22.4]} 43... h6 {[%clk 0:00:14]} 44. h3 {[%clk
0:00:22.1]} 44... Kc5 {[%clk 0:00:13.4]} 45. Ne5 {[%clk 0:00:21.9]} 45... Nf4
{[%clk 0:00:13.2]} 46. Nf7 {[%clk 0:00:21.5]} 46... Nxh3 {[%clk 0:00:13.5]} 47.
Nxh6 {[%clk 0:00:22.1]} 47... Kd4 {[%clk 0:00:13.9]} 48. Nf7 {[%clk 0:00:22.7]}
48... Ke4 {[%clk 0:00:14]} 49. Nd6+ {[%clk 0:00:20.6]} 49... Kf4 {[%clk
0:00:14.1]} 50. Nc4 {[%clk 0:00:21.2]} 50... Kxg4 {[%clk 0:00:15]} 51. Nxb6
{[%clk 0:00:21.7]} 51... Kf3 {[%clk 0:00:15.5]} 52. Nc4 {[%clk 0:00:22.4]} 52...
g4 {[%clk 0:00:15.8]} 53. Ne5+ {[%clk 0:00:23.1]} 53... Kf4 {[%clk 0:00:15.8]}
54. Nxg4 {[%clk 0:00:23.6]} 54... Kxg4 {[%clk 0:00:16.3]} 55. Kc3 {[%clk
0:00:24.2]} 55... Nf4 {[%clk 0:00:16.5]} 56. Kc4 {[%clk 0:00:23.6]} 56... Kf5
{[%clk 0:00:15.8]} 57. Kb5 {[%clk 0:00:22.7]} 57... Nd5 {[%clk 0:00:15.2]} 58.
Kc4 {[%clk 0:00:18.7]} 58... Ke6 {[%clk 0:00:16.1]} 59. Kc5 {[%clk 0:00:16.5]}
59... Ke5 {[%clk 0:00:15.2]} 60. Kc4 {[%clk 0:00:14.2]} 60... Kd6 {[%clk
0:00:14.9]} 61. Kb5 {[%clk 0:00:14.3]} 61... Ke6 {[%clk 0:00:13]} 62. Kc5 {[%clk
0:00:14.4]} 62... Ke5 {[%clk 0:00:13.1]} 63. Kc4 {[%clk 0:00:14.5]} 63... Kd6
{[%clk 0:00:12.8]} 64. Kb5 {[%clk 0:00:14.8]} 64... Kc7 {[%clk 0:00:12.9]} 65.
Kc5 {[%clk 0:00:14.3]} 65... Ne7 {[%clk 0:00:13.1]} 66. b4 {[%clk 0:00:13.6]}
66... axb4 {[%clk 0:00:11.8]} 67. Kxb4 {[%clk 0:00:13.7]} 67... Kc6 {[%clk
0:00:12.2]} 68. a5 {[%clk 0:00:13.6]} 68... Kd6 {[%clk 0:00:11.1]} 69. Kc4
{[%clk 0:00:14.2]} 69... Nc6 {[%clk 0:00:11.1]} 70. Kb5 {[%clk 0:00:13.8]} 70...
Kc7 {[%clk 0:00:10.2]} 71. a6 {[%clk 0:00:13.5]} 71... Na7+ {[%clk 0:00:10.1]}
72. Kc5 {[%clk 0:00:13.3]} 72... Nc8 {[%clk 0:00:10.3]} 73. Kb5 {[%clk
0:00:13.5]} 73... Nd6+ {[%clk 0:00:10]} 74. Kc5 {[%clk 0:00:13.9]} 74... Nc8
{[%clk 0:00:09.6]} 75. Kb5 {[%clk 0:00:14.1]} 75... Kb8 {[%clk 0:00:10.2]} 76.
Kc6 {[%clk 0:00:13.6]} 76... Ka7 {[%clk 0:00:09.8]} 77. Kc7 {[%clk 0:00:13.6]}
77... Kxa6 {[%clk 0:00:10.4]} 1/2-1/2